Cogmind - Beta 9.6 @@@ ROGUE MODE // 2020.05.18 @ 10:34:24 Player: TravelDemon Result: Destroyed by D-53 Grenadier with Mini Grenade Launcher Performance ------------- Evolutions (0) 0 Regions Visited (4) 800 Robots Destroyed (44) 220 Value Destroyed (480) 480 Prototype IDs (22) 440 Alien Tech Used (0) 0 Bonus (305) 305 TOTAL SCORE: 2245 Bonus ------- Follower Combat Kills 50 Aligned with FarCom 300 Friendly Fire -45 Cogmind --------- Core Integrity 0/250 Matter 264/300 Energy 37/265 System Corruption 2% Temperature Cool (4) Movement Treading (180) Ox1 Location -9/Mines Parts ------- > --- POWER (1) -------- Improved Ion Engine > --- PROPULSION (2) --- Light Treads Light Treads > --- UTILITY (2) ------ Large Storage Unit Large Storage Unit > --- WEAPON (2) ------- EM Pulse Gun > --- INVENTORY (16) --- Ion Engine Light Treads Light Treads Sensor Array Signal Interpreter Terrain Scan Processor Transport Network Coupler Improved Targeting Computer Melee Analysis Suite Hacking Suite Chronowheel Rocket Launcher Peak State ------------ > --- POWER ------------ Improved Ion Engine > --- PROPULSION ------- Light Treads Light Treads > --- UTILITY ---------- Large Storage Unit Large Storage Unit > --- WEAPON ----------- EM Pulse Gun Rocket Launcher > --- INVENTORY -------- Ion Engine Improved Ion Engine Light Treads Light Treads Light Treads Light Treads Sensor Array Signal Interpreter Transport Network Coupler Hacking Suite Chronowheel EM Pulse Gun EM Pulse Gun EM Pulse Gun EM Pulse Gun Rocket Launcher [Rating: 12] Favorites ----------- Power Improved Ion Engine Engine Improved Ion Engine Propulsion Light Treads Treads Light Treads Utility Large Storage Unit Storage Large Storage Unit Hackware Hacking Suite Protection Light Armor Plating Weapon EM Pulse Gun Energy Gun EM Pulse Gun Ballistic Gun Assault Rifle Launcher Rocket Launcher Build | -11 -10 -10 -10 -9 ------- Run | Scr Mat Min Exi Min Slots Evolved . | . . . . . Power . | . . . . . Propulsion . | . . . . . Utility . | . . . . . Weapon . | . . . . . Parts Attached 22 | 6 7 1 . 8 Power 3 | 1 1 . . 1 Engine 3 | 1 1 . . 1 Core . | . . . . . Reactor . | . . . . . Propulsion 5 | 2 . . . 3 Treads 5 | 2 . . . 3 Leg . | . . . . . Wheel . | . . . . . Hover . | . . . . . Flight . | . . . . . Utility 5 | 1 4 . . . Device . | . . . . . Storage 3 | 1 2 . . . Processor . | . . . . . Hackware 1 | . 1 . . . Protection 1 | . 1 . . . Artifact . | . . . . . Weapon 9 | 2 2 1 . 4 Energy Gun 7 | 1 2 . . 4 Energy Cannon . | . . . . . Ballistic Gun 1 | 1 . . . . Ballistic Cannon . | . . . . . Launcher 1 | . . 1 . . Special Weapon . | . . . . . Impact Weapon . | . . . . . Slashing Weapon . | . . . . . Piercing Weapon . | . . . . . Special Melee Weapon . | . . . . . Unidentified Prototypes . | . . . . . Parts Lost 10 | . 2 1 . 7 Power 1 | . . . . 1 Propulsion 2 | . . . . 2 Utility 1 | . 1 . . . Weapon 6 | . 1 1 . 4 Highest Loss Streak 5 | . 1 1 . 5 Average Slot Usage (%) 98 | . 98 100 100 98 Engine 13 | . 14 14 14 13 Treads 27 | . 28 28 28 26 Storage 23 | . 17 28 28 28 Protection 3 | . 9 . . . Energy Gun 17 | . 21 14 14 14 Ballistic Gun 2 | . 7 . . . Launcher 7 | . . 13 14 13 Naked Turns . | . . . . . Heaviest Build 45 | 12 43 45 45 45 Greatest Support 40 | 40 40 40 40 40 Greatest Overweight (x) 3 | 3 1 1 1 2 Average Overweight (x) . | 1 . 1 1 1 Largest Inventory Capacity 16 | 6 16 16 16 16 Average Capacity 13 | 5 10 16 16 16 Most Carried 16 | 6 16 16 16 16 Average Carried 13 | 3 10 15 16 15 Final Capacity 16 | 6 16 16 16 16 Final Carried 16 | 6 16 16 16 12 Class Distribution -------------------- 100% | Mutant Dominant Class ---------------- Mutant | -10/Materials Mutant | -10/Mines Mutant | -10/Exiles Mutant | -9/Mines Resources | -11 -10 -10 -10 -9 ----------- Run | Scr Mat Min Exi Min Matter Collected 594 | 216 178 26 . 174 Remotely . | . . . . . Salvage Created 778 | . 575 29 . 174 Parts 56 | . 44 3 . 9 Haulers Intercepted 2 | . 2 . . . Recyclers Shooed 2 | . 2 . . . Parts Field Recycled . | . . . . . Retrieved Matter . | . . . . . Parts Self-Destructed . | . . . . . Prevented . | . . . . . Kills | -11 -10 -10 -10 -9 ------- Run | Scr Mat Min Exi Min Combat Hostiles Destroyed 35 | . 9 3 . 23 Guns 12 | . 9 1 . 2 AOE 23 | . . 2 . 21 Classes Destroyed 10 | . 7 . . 3 Worker 1 | . 1 . . . Hauler 2 | . 2 . . . Recycler 2 | . 2 . . . Operator 2 | . 2 . . . Watcher 2 | . 2 . . . Swarmer 11 | . 5 3 . 3 Grunt 4 | . 4 . . . Duelist 1 | . . . . 1 Demolisher 1 | . . . . 1 Assembled 18 | . . . . 18 Best Kill Streak 18 | . 4 3 . 18 Combat Bots Only 18 | . 4 3 . 18 Max Kills in Single Turn 4 | . 1 2 . 4 Gunslinging . | . . . . . Exploded 4 | . . 2 . 4 Melee . | . . . . . Uniques/NPCs Destroyed . | . . . . . Combat | -11 -10 -10 -10 -9 -------- Run | Scr Mat Min Exi Min Damage Taken 1579 | . 367 111 . 1101 Core 252 | . 39 23 . 190 Absorbed by Shields . | . . . . . Core Remaining (%) 100 | 100 . . . . Volleys Fired 84 | . 48 5 . 31 Largest 2 | . 2 2 . 1 Hottest 80 | . 80 80 . 40 Shots Fired 133 | . 96 6 . 31 Gun 117 | . 96 5 . 16 Cannon . | . . . . . Launcher 16 | . . 1 . 15 Special . | . . . . . Kinetic 28 | . 28 . . . Thermal 13 | . 13 . . . Explosive 16 | . . 1 . 15 Electromagnetic 76 | . 55 5 . 16 Robot Hit Streak 8 | . 8 2 . 4 Robot Miss Streak 6 | . 6 4 . 2 Penetration Max . | . . . . . Secondary Targets . | . . . . . Shots Hit Robots 72 | . 51 4 . 17 Core Hits 75 | . 27 4 . 44 Critical Hits . | . . . . . Critical Kills . | . . . . . Critical Parts Destroyed . | . . . . . Melee Attacks . | . . . . . Impact . | . . . . . Slashing . | . . . . . Piercing . | . . . . . Sneak Attacks . | . . . . . Combat Hostiles . | . . . . . Follow-up Attacks . | . . . . . Damage Inflicted 2494 | . 842 179 . 1473 Guns 906 | . 736 23 . 147 Cannons . | . . . . . Explosions 1588 | . 106 156 . 1326 Melee . | . . . . . Ramming . | . . . . . Kinetic 226 | . 226 . . . Thermal 255 | . 173 . . 82 Explosive 1400 | . . 156 . 1244 Electromagnetic 613 | . 443 23 . 147 Impact . | . . . . . Slashing . | . . . . . Piercing . | . . . . . Highest Corruption 2 | . 2 2 2 2 Average Corruption 2 | . 2 2 2 2 Corruption Purged . | . . . . . Effects 22 | . 9 4 2 7 Message Errors 5 | . 3 1 . 1 Heat Flow Errors 4 | . 2 1 1 . Energy Discharges 4 | . 2 1 . 1 Data Loss (minor) 8 | . 2 1 1 4 Targeting Errors 1 | . . . . 1 Overload Shots . | . . . . . Overflow Damage 81 | . 19 . . 62 Projectiles . | . . . . . Explosions 81 | . 19 . . 62 Melee . | . . . . . Knockbacks . | . . . . . Impact . | . . . . . Kinetic . | . . . . . Secondary . | . . . . . Self-Inflicted Damage 142 | . 37 35 . 70 Shots 5 | . 1 1 . 3 Rammed . | . . . . . Targets Rammed . | . . . . . Kicked . | . . . . . Crushed . | . . . . . Highest Temperature 325 | . 325 235 100 109 Average Temperature 56 | . 60 72 55 33 Received Heat Transfer 209 | . 69 . . 140 Siege Activations . | . . . . . Robots Corrupted . | . . . . . Combat Hostiles . | . . . . . Parts Fried 4 | . 4 . . . Impact Corruptions . | . . . . . Robots Melted . | . . . . . Combat Hostiles . | . . . . . Parts Melted . | . . . . . Heat Transferred 400 | . 300 . . 100 Parts Sabotaged . | . . . . . Parts Stolen . | . . . . . Parts Stripped . | . . . . . Power Chain Reactions 2 | . 2 . . . Missiles Intercepted . | . . . . . Alert | -11 -10 -10 -10 -9 ------- Run | Scr Mat Min Exi Min Peak Influence 226 | . 226 70 . 104 Average Influence 51 | . 67 52 . 32 Maximum Alert Level 1 | . 1 . . . Low Security (%) 99 | 100 98 100 . 100 Level 1 . | . 1 . . . Level 2 . | . . . . . Level 3 . | . . . . . Level 4 . | . . . . . Level 5 . | . . . . . High Security . | . . . . . Max Security . | . . . . . Squads Dispatched 3 | . 3 . . . Investigation 1 | . 1 . . . Extermination . | . . . . . Reinforcement 2 | . 2 . . . Assault . | . . . . . Garrison . | . . . . . Intercept . | . . . . . Construction Impeded . | . . . . . Haulers Reinforced . | . . . . . Stealth | -11 -10 -10 -10 -9 --------- Run | Scr Mat Min Exi Min Distress Signals 1 | . 1 . . . Communications Jammed . | . . . . . Distress Signals . | . . . . . Times Spotted 58 | . 29 3 . 26 Peak Tracking Total 13 | . 5 3 . 13 Tactical Retreats 2 | . 1 . . 1 Traps | -11 -10 -10 -10 -9 ------- Run | Scr Mat Min Exi Min Traps Triggered 1 | . 1 . . . Indirectly . | . . . . . Trap Hack Attempts . | . . . . . Triggered . | . . . . . Disarmed . | . . . . . Reprogrammed . | . . . . . Reused . | . . . . . Traps Extracted . | . . . . . Installed . | . . . . . Triggered . | . . . . . Machines | -11 -10 -10 -10 -9 ---------- Run | Scr Mat Min Exi Min Machines Disabled 4 | . 2 . . 2 Max in Single Turn 2 | . 1 . . 2 Machines Sabotaged . | . . . . . Garrisons Compromised . | . . . . . Overloaded Fab Kills . | . . . . . Fab Network Shutdowns . | . . . . . Hacking | -11 -10 -10 -10 -9 --------- Run | Scr Mat Min Exi Min Machines Accessed 5 | . 4 . 1 . Terminals 4 | . 4 . . . Fabricators . | . . . . . Repair Stations . | . . . . . Recycling Units . | . . . . . Scanalyzers . | . . . . . Garrison Access . | . . . . . Total Hacks 13 | . 12 . 1 . Successful 5 | . 4 . 1 . Failed 7 | . 7 . . . Catastrophic . | . . . . . Database Lockouts 2 | . 2 . . . Manual 11 | . 10 . 1 . Terminals 12 | . 12 . . . Fabricators . | . . . . . Repair Stations . | . . . . . Recycling Units . | . . . . . Scanalyzers . | . . . . . Garrison Access . | . . . . . Terminal Hacks 5 | . 4 . 1 . Robot Analysis 1 | . 1 . . . Branch Access Points 1 | . 1 . . . Recall Investigation 1 | . 1 . . . Registered Components 1 | . 1 . . . EX-Prototype ID Bank 1 | . . . 1 . Fabricator Hacks . | . . . . . Repair Station Hacks . | . . . . . Recycling Unit Hacks . | . . . . . Scanalyzer . | . . . . . Garrison Access Hacks . | . . . . . Unauthorized Hacks . | . . . . . Terminals . | . . . . . Fabricators . | . . . . . Repair Stations . | . . . . . Recycling Units . | . . . . . Scanalyzers . | . . . . . Garrison Access . | . . . . . Data Cores Recovered . | . . . . . Used . | . . . . . Hacking Detections . | . . . . . Full Trace Events . | . . . . . Feedback Events . | . . . . . Feedback Blocked . | . . . . . Robot Schematics Acquired . | . . . . . Robots Built . | . . . . . Matter . | . . . . . Time . | . . . . . Total Robot Build Rating . | . . . . . Part Schematics Acquired . | . . . . . Parts Built . | . . . . . Matter . | . . . . . Time . | . . . . . Total Part Build Rating . | . . . . . Parts Repaired . | . . . . . Time . | . . . . . Parts Recycled . | . . . . . Recycled Matter . | . . . . . Retrieved Matter . | . . . . . Retrieved Components . | . . . . . Parts Scanalyzed . | . . . . . Part Schematics Acquired . | . . . . . Parts Damaged . | . . . . . Bothacking | -11 -10 -10 -10 -9 ------------ Run | Scr Mat Min Exi Min Used RIF Installer . | . . . . . Robots Hacked . | . . . . . Non-combat . | . . . . . Combat . | . . . . . Robot Hacks Applied . | . . . . . Relay Couplers Released . | . . . . . Robots Rewired . | . . . . . Allies Hacked . | . . . . . Hacks Repelled . | . . . . . Allies | -11 -10 -10 -10 -9 -------- Run | Scr Mat Min Exi Min Total Allies 2 | . . . . 2 Largest Group 2 | . . . . 2 Highest-Rated Group 47 | . . . . 47 Highest-Rated Ally 31 | . . . . 31 Total Orders . | . . . . . Ally Attacks 17 | . . . . 17 Total Damage 188 | . . . . 188 Kills 2 | . . . . 2 Allies Corrupted . | . . . . . Allies Melted . | . . . . . Intel | -11 -10 -10 -10 -9 ------- Run | Scr Mat Min Exi Min Robot Analysis Total 1 | . 1 . . . Derelict Logs Recovered 1 | . . 1 . . Drone Launches . | . . . . . Drone Recoveries . | . . . . . Exploration | -11 -10 -10 -10 -9 ------------- Run | Scr Mat Min Exi Min Turns Passed 3015 | 84 1239 493 391 808 Spaces Moved 1551 | 44 623 267 217 400 Core 21 | 21 . . . . Treads 1530 | 23 623 267 217 400 Legs . | . . . . . Wheels . | . . . . . Hover . | . . . . . Flight . | . . . . . Fastest Speed 50 | 50 160 180 180 180 Average Speed 173 | 158 164 180 180 181 Slowest Speed 200 | 200 180 180 180 200 Overloaded Moves . | . . . . . Propulsion Burnouts . | . . . . . Robots Hopped . | . . . . . Cave-ins Triggered . | . . . . . Exploration Rate (%) 59 | 4 87 66 61 77 Regions Visited 4 Branch Regions 3 Pre-discovered Areas . | . . . . . Known Exits Taken 1 | . 1 . . . Unknown Exits Taken 3 | 1 . 1 1 . Scrap Searched 3 | . . 2 . 1 Spaces Dug . | . . . . . Terrain Destroyed 126 | . 5 11 . 110 Melee . | . . . . . Projectile . | . . . . . AOE 126 | . 5 11 . 110 Actions | -11 -10 -10 -10 -9 --------- Run | Scr Mat Min Exi Min Total 1745 | 55 747 274 218 451 Wait 31 | . 23 1 . 7 Move 1547 | 43 622 266 216 400 Hop . | . . . . . Pick Up 40 | 6 29 1 1 3 Fast Attach 10 | 6 4 . . . Attach 10 | . 2 1 . 7 Detach . | . . . . . Swap 2 | . 1 . . 1 Drop 20 | . 18 . 1 1 Fire 84 | . 48 5 . 31 Melee . | . . . . . Ram . | . . . . . Kick . | . . . . . Crush . | . . . . . Escape Stasis . | . . . . . Rewire 1 | . . . . 1 Trap . | . . . . . Miscellaneous . | . . . . . Route ------- -11/Scrapyard -10/Materials (discovered 4 exits: [*Mat x3] / *Min) -10/Mines (discovered 2 exits: [*Mat] / *Exi) -10/Exiles -9/Mines History --------- Turn | Location | Event 10 | -11/Scrapyard | Discovered new exit (range 16) 85 | -11/Scrapyard | Entered Materials 306 | -10/Materials | Build established: Mutant 322 | -10/Materials | Central database locked down 493 | -10/Materials | Discovered new exit (range 13) 851 | -10/Materials | Discovered new exit (range 12) 896 | -10/Materials | Identified exit to Mines 913 | -10/Materials | Discovered new exit (range 16) 1324 | -10/Materials | Entered Mines 1337 | -10/Mines | Discovered new exit (range 4) 1509 | -10/Mines | Learned 2 Materials zone layouts 1765 | -10/Mines | Received a Rocket Launcher from a helpful Derelict 1783 | -10/Mines | Deemed a non-threat by the Exiles lab entrance 1785 | -10/Mines | Discovered new exit (range 5) 1817 | -10/Mines | Entered Exiles 1861 | -10/Exiles | Met 8R-AWN 1893 | -10/Exiles | Met EX-HEX 1942 | -10/Exiles | Met EX-BIN 1961 | -10/Exiles | Aligned with FarCom system 1963 | -10/Exiles | Given EX-Vault access code 2024 | -10/Exiles | Opened EX-Vault 2041 | -10/Exiles | Found Chronowheel 2076 | -10/Exiles | Warned to stay clear of 0b10 Research branches 2099 | -10/Exiles | Exiles lab attacked by MAIN.C 2188 | -10/Exiles | Discovered new exit (range 14) 2208 | -10/Exiles | Left Exiles lab with Chronowheel 2208 | -10/Exiles | Entered Mines 2209 | -9/Mines | Assembled infested the area 2269 | -9/Mines | Destroyed 18 combat bots 2996 | -9/Mines | Core integrity fell below 50% 3003 | -9/Mines | Core integrity fell below 20% 3016 | -9/Mines | Destroyed by D-53 Grenadier with Mini Grenade Launcher Last Messages --------------- 02998_ System corrupted: EM Pulse Gun targeting data glitched. 02999_ D-53 Grenadier misfires. 03001_ The unstable cave ceiling collapses. 03001_ Lgt. Treads destroyed. 03002_ D-53 Grenadier destroyed. 03005_ The unstable cave ceiling collapses. 03005_ U-05 Engineer lays Concrete. 03006_ K-01 Serf collects debris. 03007_ U-05 Engineer lays Concrete. 03009_ The unstable cave ceiling collapses. 03009_ U-05 Engineer lays Concrete. 03009_ R-06 Scavenger collects Imp. Light Armor Plating. 03010_ EM Pulse Gun destroyed. 03010_ U-05 Engineer lays Concrete. 03010_ K-01 Serf collects debris. 03013_ The unstable cave ceiling collapses. 03013_ R-06 Scavenger collects Shock Absorption System. 03014_ K-01 Serf collects debris. 03014_ U-05 Engineer lays Concrete. 03016_ The unstable cave ceiling collapses. Map ----- +----------------------------------------------------+ | # ##??# #???????????????????????????????????? | | #??# #???????????????????????????????????? | | ##### #???????????????????????????????????? | | #???????????????????????????????# ??? | | ## ## ####???????????###??????????????????# | | ?## ## ###???????##### ##??????????????????# | | ??## ### #??????## #???????????????????# | | ???## #?### #?????## [ #???????????????????#" | | ????# #???# #???### ! ##???????????????????## | | ????# #???# #??## ##?????????????????????? | | ????# #???# #?## ####???? #????????????????? | | ????# #???# ### ##?###### #????????????????? | | ????# #???# ## ##?# #????????????????? | | ????# #???# ## #### ??????????????????? | | ????# #???# ## #### #???????????????????? | | ????# #???# ## # #???????????????????? | | ????# ##### t ### #???????????#####???? | | ????# ## # ##?????????## #??? | | ????### ## % % ##????????# #?? | | ??????# ## ##???????# ## | | ??????# ## ###r k #????????# | | ??????# ## ######%d #?????????# | | ??????# ### #### ##]= ##?????????# | | ??????# #?##### u ##???????????# | | ??????##### ### ### #???????????## # | | ??????????# ## @ #????????????## ?? | | ????????### ## #?????????????????? | | ??????Y?# # # #??????????????#### | | ????????# ## #??????? | | ????????+ ### ##??????????????#### | | ????????+ #### # ###??????????????????# | | ????????# #??#####? ????????????????? | | ????????# %# #???????# ??????????????? | | ????????### ##?????# ??????????????? | | ??????????## #????? ???????????????? | | ???????????### #????? #???????????????? | | ?????????????## ##???? #????????????????? | | ??????????????## ##??? #?????????????????? | | ???????????????# #### #??????????????????? | | ???????????????#C ## #??????????????????# | | ??????????????## #??????????????????## | | ?????????????## ##?????????????????## | | ?????????????# ## ##?????????????????# | | ?????????????## ### ############??????# | | ?????# ######### ### #??????# | | ?????# % ##????## | | ?????# ####### #???## | | ?????###################### ##?????# #??## | | ??????????????????????????#####??????### #### | | ??????????????????????????????????????## ## ] ## | +----------------------------------------------------+ Best States ------------- Heat Dissipation 25 Energy Generation 12 Energy Capacity 265 Matter Stores 300 Matter Capacity 300 Sight Range 16 Terrain Scan Density 10 Armor Coverage 150 Evasion (%) 40 Recoil Reduction 2 Offensive Hacking 10 Item Schematics ----------------- None Robot Schematics ------------------ None Fabricated ------------ Nothing Alien Tech Used ----------------- None Achievements -------------- Exterminator Challenges ------------ None Game ------ Seed DisruptionPotentialGun Manual? 0 Play Time 00:22:36 Cumulative 42.4 hours Start 2020.05.18 @ 10:16:21 End 2020.05.18 @ 10:34:24 Sessions 1 Manual Loads 0 Difficulty Rogue Special Mode None Game No. 58 Rogue 56 Adventurer 0 Explorer 2 Win Type - Total 0 Types 0/0/0/0/0/0/0 Lore% 32 Gallery% 40 Achievement% 33 Wizard Run 0 Options --------- ASCII 0 Keyboard 1 Movement Numpad Keybinds 0 Fullscreen 2 Font 18/SmallcapsGlow Map View 76x50 Tactical HUD 1 Map Filters NONE Filters NONE Steam 1 RUN: 3938584c-91fc-4649-92e7-98d0f7947c3d